[Event "Live Chess"]
[Site "Chess.com"]
[Date "2023.05.20"]
[Round "-"]
[White "amazinggoalkeeper"]
[Black "PiotrD11"]
[Result "0-1"]
[WhiteElo "499"]
[BlackElo "1329"]
[TimeControl "300"]
[EndTime "10:53:17 PDT"]
[Termination "PiotrD11 won by resignation"]

1. e4 {[%clk 0:04:58.3]} 1... d5 {[%clk 0:04:59.9]} 2. e5 {[%clk 0:04:57.2]}
2... d4 {[%clk 0:04:57.1]} 3. Nf3 {[%clk 0:04:50.3]} 3... Nc6 {[%clk 0:04:55.9]}
4. Bc4 {[%clk 0:04:48.4]} 4... Bg4 {[%clk 0:04:55.2]} 5. O-O {[%clk 0:04:43.5]}
5... e6 {[%clk 0:04:53.9]} 6. Re1 {[%clk 0:04:42.4]} 6... Nge7 {[%clk
0:04:49.1]} 7. h3 {[%clk 0:04:40]} 7... Bh5 {[%clk 0:04:47.5]} 8. g4 {[%clk
0:04:37.2]} 8... Bg6 {[%clk 0:04:46.5]} 9. h4 {[%clk 0:04:35.4]} 9... h6 {[%clk
0:04:45.7]} 10. h5 {[%clk 0:04:34.5]} 10... Bh7 {[%clk 0:04:44.8]} 11. c3 {[%clk
0:04:28.4]} 11... dxc3 {[%clk 0:04:40.8]} 12. dxc3 {[%clk 0:04:23.1]} 12... Qxd1
{[%clk 0:04:40]} 13. Rxd1 {[%clk 0:04:22.3]} 13... a6 {[%clk 0:04:38]} 14. Nd4
{[%clk 0:04:20.1]} 14... Nxd4 {[%clk 0:04:35.2]} 15. Rxd4 {[%clk 0:04:18.6]}
15... Nc6 {[%clk 0:04:31.1]} 16. Rd1 {[%clk 0:04:15]} 16... Nxe5 {[%clk
0:04:28]} 17. Bd3 {[%clk 0:04:11.9]} 17... Nxd3 {[%clk 0:04:19.1]} 18. Nd2
{[%clk 0:04:07.9]} 18... Bc5 {[%clk 0:04:12.8]} 19. Kg2 {[%clk 0:04:04.7]} 19...
Nxf2 {[%clk 0:04:07.1]} 20. Rf1 {[%clk 0:04:02.9]} 20... Nxg4 {[%clk 0:03:59.5]}
21. Kg3 {[%clk 0:04:00.8]} 21... Ne3 {[%clk 0:03:48.2]} 22. Rf3 {[%clk
0:03:55.4]} 22... Bd6+ {[%clk 0:03:42.5]} 23. Kf2 {[%clk 0:03:53.2]} 23... Nc2
{[%clk 0:03:20.4]} 24. Rb1 {[%clk 0:03:50.7]} 24... O-O {[%clk 0:03:18.2]} 25.
Ke2 {[%clk 0:03:48.4]} 25... Rad8 {[%clk 0:03:02.6]} 26. Kd1 {[%clk 0:03:46.7]}
26... Be5 {[%clk 0:02:48.4]} 0-1

[Event "Live Chess"]
[Site "Chess.com"]
[Date "2023.05.20"]
[Round "-"]
[White "Vladyslav2008"]
[Black "lHolyDiverl"]
[Result "1-0"]
[WhiteElo "2194"]
[BlackElo "562"]
[TimeControl "300"]
[EndTime "10:53:35 PDT"]
[Termination "Vladyslav2008 won by resignation"]

1. e4 {[%clk 0:04:57.6]} 1... c6 {[%clk 0:04:59.1]} 2. d4 {[%clk 0:04:56.3]}
2... d5 {[%clk 0:04:58.5]} 3. e5 {[%clk 0:04:55.3]} 3... Bf5 {[%clk 0:04:57.8]}
4. Ne2 {[%clk 0:04:51.3]} 4... e6 {[%clk 0:04:54.5]} 5. Ng3 {[%clk 0:04:49.9]}
5... Bg6 {[%clk 0:04:51.6]} 6. h4 {[%clk 0:04:48.5]} 6... h5 {[%clk 0:04:48.6]}
7. Be2 {[%clk 0:04:46.9]} 7... Ne7 {[%clk 0:04:23.8]} 8. Nxh5 {[%clk 0:04:38.2]}
8... Nf5 {[%clk 0:03:55.8]} 9. g3 {[%clk 0:04:30.5]} 9... Qb6 {[%clk 0:03:51.9]}
10. c3 {[%clk 0:04:25.9]} 10... c5 {[%clk 0:03:48.3]} 11. Nf4 {[%clk 0:04:19.5]}
11... cxd4 {[%clk 0:03:39.4]} 12. Nxg6 {[%clk 0:04:18.4]} 12... fxg6 {[%clk
0:03:36.7]} 13. h5 {[%clk 0:04:15.7]} 13... dxc3 {[%clk 0:02:55.2]} 14. Nxc3
{[%clk 0:04:11.6]} 14... Bc5 {[%clk 0:02:36.9]} 15. O-O {[%clk 0:04:07.4]} 15...
Nc6 {[%clk 0:02:00]} 16. Na4 {[%clk 0:04:00.9]} 16... Qb4 {[%clk 0:01:46.3]} 17.
Bd2 {[%clk 0:03:57.5]} 17... Qe4 {[%clk 0:01:12.3]} 18. Nxc5 {[%clk 0:03:53.7]}
18... Nh4 {[%clk 0:00:20.5]} 19. Nxe4 {[%clk 0:03:48.9]} 1-0

[Event "Live Chess"]
[Site "Chess.com"]
[Date "2023.05.20"]
[Round "-"]
[White "JanMur7"]
[Black "Outspanner"]
[Result "1-0"]
[WhiteElo "1950"]
[BlackElo "1534"]
[TimeControl "300"]
[EndTime "10:53:44 PDT"]
[Termination "JanMur7 won on time"]

1. e4 {[%clk 0:04:58]} 1... d6 {[%clk 0:04:54]} 2. d4 {[%clk 0:04:56.3]} 2...
Nf6 {[%clk 0:04:53.4]} 3. Nc3 {[%clk 0:04:54.9]} 3... Nbd7 {[%clk 0:04:52.7]} 4.
f4 {[%clk 0:04:53]} 4... e5 {[%clk 0:04:52.2]} 5. Nf3 {[%clk 0:04:52.1]} 5...
exd4 {[%clk 0:04:50.3]} 6. Nxd4 {[%clk 0:04:50.5]} 6... g6 {[%clk 0:04:49.1]} 7.
Bc4 {[%clk 0:04:46.3]} 7... Bg7 {[%clk 0:04:48]} 8. Be3 {[%clk 0:04:45.4]} 8...
O-O {[%clk 0:04:43.8]} 9. Qd2 {[%clk 0:04:43.6]} 9... c6 {[%clk 0:04:39.7]} 10.
O-O-O {[%clk 0:04:40.4]} 10... b5 {[%clk 0:04:38.8]} 11. Nxc6 {[%clk 0:04:38]}
11... Qc7 {[%clk 0:04:19.2]} 12. Bxb5 {[%clk 0:04:26.5]} 12... Re8 {[%clk
0:03:46.5]} 13. Qxd6 {[%clk 0:04:16.7]} 13... Qxd6 {[%clk 0:02:50.2]} 14. Rxd6
{[%clk 0:04:16.6]} 14... a6 {[%clk 0:02:21.3]} 15. Bd3 {[%clk 0:04:08.9]} 15...
Bf8 {[%clk 0:02:04.8]} 16. Rd5 {[%clk 0:03:54.2]} 16... Nxd5 {[%clk 0:01:59.3]}
17. Nxd5 {[%clk 0:03:54.1]} 17... Bb7 {[%clk 0:01:49.1]} 18. Ne5 {[%clk
0:03:27.3]} 18... Bxd5 {[%clk 0:01:30.9]} 19. Nxd7 {[%clk 0:03:24.1]} 19... Bc6
{[%clk 0:01:21.2]} 20. Nf6+ {[%clk 0:03:20]} 20... Kg7 {[%clk 0:01:18.3]} 21.
Nxe8+ {[%clk 0:03:14.1]} 21... Rxe8 {[%clk 0:01:16.6]} 22. Bd4+ {[%clk 0:03:14]}
22... f6 {[%clk 0:01:15.9]} 23. Re1 {[%clk 0:03:09.7]} 23... Bb5 {[%clk
0:00:32.1]} 24. Bxb5 {[%clk 0:03:06.4]} 24... axb5 {[%clk 0:00:31.3]} 25. e5
{[%clk 0:03:05.1]} 25... fxe5 {[%clk 0:00:26.9]} 26. Rxe5 {[%clk 0:03:03.2]}
26... Rxe5 {[%clk 0:00:22.8]} 27. Bxe5+ {[%clk 0:03:01.7]} 27... Kf7 {[%clk
0:00:22.7]} 28. c3 {[%clk 0:02:58.8]} 28... Ke6 {[%clk 0:00:22.1]} 29. Kd2
{[%clk 0:02:56.8]} 29... Kd5 {[%clk 0:00:21]} 30. Kd3 {[%clk 0:02:55.8]} 30...
Bc5 {[%clk 0:00:18]} 31. b3 {[%clk 0:02:54.3]} 31... Bg1 {[%clk 0:00:14.2]} 32.
h3 {[%clk 0:02:53]} 32... Bh2 {[%clk 0:00:13.5]} 33. c4+ {[%clk 0:02:52.7]}
33... Kc6 {[%clk 0:00:10.5]} 34. b4 {[%clk 0:02:52.6]} 34... bxc4+ {[%clk
0:00:09.3]} 35. Kxc4 {[%clk 0:02:52.3]} 35... g5 {[%clk 0:00:08.8]} 36. b5+
{[%clk 0:02:49.4]} 36... Kb7 {[%clk 0:00:07.2]} 37. fxg5 {[%clk 0:02:42.5]}
37... Bxe5 {[%clk 0:00:05.8]} 38. g6 {[%clk 0:02:42.4]} 38... hxg6 {[%clk
0:00:04.4]} 39. a4 {[%clk 0:02:42.3]} 39... g5 {[%clk 0:00:02.6]} 40. a5 {[%clk
0:02:42.2]} 40... Bd6 {[%clk 0:00:02.1]} 41. a6+ {[%clk 0:02:42.1]} 41... Kb6
{[%clk 0:00:00.8]} 42. Kd5 {[%clk 0:02:42]} 1-0

[Event "Live Chess"]
[Site "Chess.com"]
[Date "2023.05.20"]
[Round "-"]
[White "wadsy27"]
[Black "lateforthesky"]
[Result "1-0"]
[WhiteElo "2588"]
[BlackElo "2071"]
[TimeControl "300"]
[EndTime "10:53:46 PDT"]
[Termination "wadsy27 won by resignation"]

1. c4 {[%clk 0:04:57.7]} 1... g6 {[%clk 0:04:55.6]} 2. g3 {[%clk 0:04:56.8]}
2... Bg7 {[%clk 0:04:54.6]} 3. Bg2 {[%clk 0:04:56.4]} 3... d6 {[%clk 0:04:49.3]}
4. Nc3 {[%clk 0:04:55.4]} 4... Nf6 {[%clk 0:04:46]} 5. d3 {[%clk 0:04:54.8]}
5... O-O {[%clk 0:04:44.5]} 6. e4 {[%clk 0:04:53.6]} 6... c5 {[%clk 0:04:37.7]}
7. Nge2 {[%clk 0:04:52.8]} 7... Nc6 {[%clk 0:04:36]} 8. O-O {[%clk 0:04:51.6]}
8... Rb8 {[%clk 0:04:34.7]} 9. h3 {[%clk 0:04:44.9]} 9... Nd4 {[%clk 0:04:29.9]}
10. Nxd4 {[%clk 0:04:42.1]} 10... cxd4 {[%clk 0:04:28.3]} 11. Ne2 {[%clk
0:04:42]} 11... Nd7 {[%clk 0:04:26.4]} 12. a4 {[%clk 0:04:40.5]} 12... a5 {[%clk
0:04:20.8]} 13. Bd2 {[%clk 0:04:33.3]} 13... Nc5 {[%clk 0:04:15.8]} 14. Nc1
{[%clk 0:04:26.4]} 14... e5 {[%clk 0:04:06.2]} 15. Nb3 {[%clk 0:04:20.2]} 15...
b6 {[%clk 0:04:02.4]} 16. Nc1 {[%clk 0:04:13.3]} 16... h6 {[%clk 0:03:58.2]} 17.
Kh2 {[%clk 0:04:12.5]} 17... Kh7 {[%clk 0:03:57.1]} 18. f4 {[%clk 0:03:54.1]}
18... f5 {[%clk 0:03:54.2]} 19. b4 {[%clk 0:03:51.6]} 19... axb4 {[%clk
0:03:52.1]} 20. Bxb4 {[%clk 0:03:50.8]} 20... fxe4 {[%clk 0:03:45.7]} 21. dxe4
{[%clk 0:03:37.4]} 21... Be6 {[%clk 0:03:34.8]} 22. fxe5 {[%clk 0:03:21.2]}
22... dxe5 {[%clk 0:03:12]} 23. a5 {[%clk 0:03:18.5]} 23... Rxf1 {[%clk
0:02:59.3]} 24. Qxf1 {[%clk 0:03:16.2]} 24... Qc7 {[%clk 0:02:46.5]} 25. axb6
{[%clk 0:02:20.5]} 25... Qxb6 {[%clk 0:02:44.4]} 26. Bxc5 {[%clk 0:02:19.9]}
26... Qxc5 {[%clk 0:02:41.9]} 27. Nd3 {[%clk 0:02:19.4]} 27... Qxc4 {[%clk
0:02:22.2]} 28. Ra7 {[%clk 0:02:16.6]} 28... Kg8 {[%clk 0:02:06.7]} 29. h4
{[%clk 0:01:52.7]} 29... Rf8 {[%clk 0:02:02.2]} 30. Qd1 {[%clk 0:01:44.9]} 30...
h5 {[%clk 0:01:54.5]} 31. Bh3 {[%clk 0:01:42]} 31... Bxh3 {[%clk 0:01:52.6]} 32.
Kxh3 {[%clk 0:01:41.4]} 32... Qc8+ {[%clk 0:01:39.5]} 33. Kg2 {[%clk 0:01:37.2]}
33... Rf7 {[%clk 0:01:35.1]} 34. Qb3 {[%clk 0:01:32.6]} 34... Qe8 {[%clk
0:01:28.4]} 35. Qd5 {[%clk 0:01:25]} 35... Bf8 {[%clk 0:01:13.2]} 36. Nxe5
{[%clk 0:01:21.6]} 1-0

[Event "Live Chess"]
[Site "Chess.com"]
[Date "2023.05.20"]
[Round "-"]
[White "Greenbecker"]
[Black "Inglaterra"]
[Result "0-1"]
[WhiteElo "1659"]
[BlackElo "2076"]
[TimeControl "300"]
[EndTime "10:53:48 PDT"]
[Termination "Inglaterra won on time"]

1. e4 {[%clk 0:04:57.7]} 1... e6 {[%clk 0:04:59.2]} 2. d4 {[%clk 0:04:56.1]}
2... d5 {[%clk 0:04:59.1]} 3. exd5 {[%clk 0:04:55.5]} 3... exd5 {[%clk
0:04:56.5]} 4. Nf3 {[%clk 0:04:54.9]} 4... Bd6 {[%clk 0:04:55.7]} 5. Bd3 {[%clk
0:04:54.5]} 5... Ne7 {[%clk 0:04:54.6]} 6. O-O {[%clk 0:04:54.1]} 6... O-O
{[%clk 0:04:53.5]} 7. Re1 {[%clk 0:04:53.7]} 7... Bf5 {[%clk 0:04:50]} 8. Nc3
{[%clk 0:04:48.8]} 8... Bxd3 {[%clk 0:04:47.4]} 9. Qxd3 {[%clk 0:04:47.5]} 9...
c6 {[%clk 0:04:47.1]} 10. Bg5 {[%clk 0:04:45.9]} 10... f6 {[%clk 0:04:44.8]} 11.
Bh4 {[%clk 0:04:44.2]} 11... Nd7 {[%clk 0:04:42.4]} 12. Qe2 {[%clk 0:04:41.3]}
12... Ng6 {[%clk 0:04:36.4]} 13. Qe6+ {[%clk 0:04:37.3]} 13... Kh8 {[%clk
0:04:29.9]} 14. Qxd6 {[%clk 0:04:36.6]} 14... Nb6 {[%clk 0:04:15.8]} 15. Qxd8
{[%clk 0:04:34.4]} 15... Raxd8 {[%clk 0:04:15.2]} 16. Bg3 {[%clk 0:04:28.5]}
16... Kg8 {[%clk 0:04:05.1]} 17. Bc7 {[%clk 0:04:20.9]} 17... Rd7 {[%clk
0:03:59.9]} 18. Bxb6 {[%clk 0:04:19.9]} 18... axb6 {[%clk 0:03:59.3]} 19. g3
{[%clk 0:04:16.3]} 19... Kf7 {[%clk 0:03:56.1]} 20. Re2 {[%clk 0:04:14.5]} 20...
Ne7 {[%clk 0:03:50.7]} 21. Nh4 {[%clk 0:04:04.6]} 21... h5 {[%clk 0:03:46.4]}
22. Rae1 {[%clk 0:03:59.4]} 22... Nc8 {[%clk 0:03:38.8]} 23. Nf5 {[%clk
0:03:51.7]} 23... g6 {[%clk 0:03:36.9]} 24. Ne3 {[%clk 0:03:35.7]} 24... Nd6
{[%clk 0:03:34]} 25. Ng2 {[%clk 0:03:32.7]} 25... b5 {[%clk 0:03:30.9]} 26. b3
{[%clk 0:03:25.6]} 26... Ra8 {[%clk 0:03:26.4]} 27. Nf4 {[%clk 0:03:13.9]} 27...
Nf5 {[%clk 0:03:02.5]} 28. Rd2 {[%clk 0:02:54.7]} 28... Ra3 {[%clk 0:02:51.2]}
29. Kf1 {[%clk 0:02:41.5]} 29... b4 {[%clk 0:02:48.5]} 30. Na4 {[%clk
0:02:39.1]} 30... Rxa2 {[%clk 0:02:45.9]} 31. Nc5 {[%clk 0:02:38]} 31... Rc7
{[%clk 0:02:39.2]} 32. Nfe6 {[%clk 0:02:30.6]} 32... Re7 {[%clk 0:02:34.5]} 33.
Nd8+ {[%clk 0:02:24.9]} 33... Ke8 {[%clk 0:02:29.1]} 34. Rxe7+ {[%clk
0:02:19.3]} 34... Kxe7 {[%clk 0:02:27.2]} 35. Ndxb7 {[%clk 0:02:01.7]} 35...
Ra1+ {[%clk 0:02:06.4]} 36. Kg2 {[%clk 0:01:50.5]} 36... Kf7 {[%clk 0:02:02.5]}
37. h3 {[%clk 0:01:37.1]} 37... Re1 {[%clk 0:01:56.6]} 38. Nd3 {[%clk
0:01:27.3]} 38... Re4 {[%clk 0:01:49.6]} 39. Nxb4 {[%clk 0:01:23.4]} 39... h4
{[%clk 0:01:44.5]} 40. Nxc6 {[%clk 0:01:08.3]} 40... hxg3 {[%clk 0:01:37]} 41.
fxg3 {[%clk 0:01:06.1]} 41... Re3 {[%clk 0:01:34.6]} 42. g4 {[%clk 0:01:02.5]}
42... Nh4+ {[%clk 0:01:31]} 43. Kf2 {[%clk 0:00:55.3]} 43... Rxh3 {[%clk
0:01:27.7]} 44. Nbd8+ {[%clk 0:00:46.7]} 44... Ke8 {[%clk 0:01:17.4]} 45. Re2+
{[%clk 0:00:44.8]} 45... Kd7 {[%clk 0:01:15.9]} 46. Re7+ {[%clk 0:00:43.4]}
46... Kd6 {[%clk 0:01:12.5]} 47. Re6+ {[%clk 0:00:24.8]} 47... Kd7 {[%clk
0:01:11.3]} 48. Rxf6 {[%clk 0:00:22.6]} 48... g5 {[%clk 0:01:05.6]} 49. Rf7+
{[%clk 0:00:20.6]} 49... Ke8 {[%clk 0:01:01.7]} 50. Re7+ {[%clk 0:00:18.4]}
50... Kf8 {[%clk 0:01:00.6]} 51. Ne6+ {[%clk 0:00:17.4]} 51... Kg8 {[%clk
0:00:59.6]} 52. Nxg5 {[%clk 0:00:16.4]} 52... Rh1 {[%clk 0:00:47.2]} 53. Kg3
{[%clk 0:00:14.4]} 53... Ng6 {[%clk 0:00:45.4]} 54. Re8+ {[%clk 0:00:12.7]}
54... Kg7 {[%clk 0:00:44.2]} 55. Ne5 {[%clk 0:00:11.4]} 55... Rg1+ {[%clk
0:00:36]} 56. Kf2 {[%clk 0:00:09.5]} 56... Rc1 {[%clk 0:00:34.7]} 57. Nxg6
{[%clk 0:00:08.2]} 57... Rxc2+ {[%clk 0:00:32.8]} 58. Ke3 {[%clk 0:00:06.4]}
58... Kxg6 {[%clk 0:00:31.6]} 59. Ne6 {[%clk 0:00:04]} 59... Rc3+ {[%clk
0:00:30.3]} 60. Kd2 {[%clk 0:00:02.2]} 60... Rxb3 {[%clk 0:00:29.7]} 61. Nc7
{[%clk 0:00:01.5]} 61... Rg3 {[%clk 0:00:26.9]} 62. Re5 {[%clk 0:00:00.7]} 62...
Rxg4 {[%clk 0:00:23.9]} 63. Rxd5 {[%clk 0:00:00.4]} 63... Kf6 {[%clk 0:00:23]}
0-1

[Event "Live Chess"]
[Site "Chess.com"]
[Date "2023.05.20"]
[Round "-"]
[White "Wlzard-1"]
[Black "MrDodgy"]
[Result "0-1"]
[WhiteElo "986"]
[BlackElo "2330"]
[TimeControl "300"]
[EndTime "10:53:51 PDT"]
[Termination "MrDodgy won by checkmate"]

1. Nf3 {[%clk 0:04:43.8]} 1... d5 {[%clk 0:04:58.7]} 2. g3 {[%clk 0:04:41.5]}
2... Nf6 {[%clk 0:04:58.1]} 3. Bg2 {[%clk 0:04:40.4]} 3... g6 {[%clk 0:04:57.7]}
4. d4 {[%clk 0:04:37.2]} 4... Bg7 {[%clk 0:04:56.9]} 5. O-O {[%clk 0:04:33.6]}
5... O-O {[%clk 0:04:55.9]} 6. Bg5 {[%clk 0:04:30.4]} 6... c5 {[%clk 0:04:54.5]}
7. c3 {[%clk 0:04:26.3]} 7... cxd4 {[%clk 0:04:45.3]} 8. cxd4 {[%clk 0:04:19.3]}
8... Nc6 {[%clk 0:04:44.8]} 9. Nc3 {[%clk 0:04:11.9]} 9... h6 {[%clk 0:04:41.6]}
10. Bxf6 {[%clk 0:04:01.9]} 10... Bxf6 {[%clk 0:04:37.8]} 11. e3 {[%clk
0:04:01.1]} 11... Bg7 {[%clk 0:04:27.7]} 12. a3 {[%clk 0:03:54.8]} 12... Bg4
{[%clk 0:04:22.4]} 13. h3 {[%clk 0:03:48.8]} 13... Bf5 {[%clk 0:04:18.5]} 14.
Nh4 {[%clk 0:03:41.2]} 14... Be6 {[%clk 0:04:15.8]} 15. Nf3 {[%clk 0:03:30.2]}
15... Rc8 {[%clk 0:04:12.2]} 16. b4 {[%clk 0:03:27.1]} 16... Nxd4 {[%clk
0:03:59.8]} 17. exd4 {[%clk 0:03:14.8]} 17... Rxc3 {[%clk 0:03:57.2]} 18. Ne5
{[%clk 0:02:57.8]} 18... Qc8 {[%clk 0:03:39.5]} 19. Qd2 {[%clk 0:02:42.4]} 19...
Rc2 {[%clk 0:03:33.7]} 20. Qd3 {[%clk 0:02:36.5]} 20... Bf5 {[%clk 0:03:22.4]}
21. Qe3 {[%clk 0:02:34.3]} 21... Bxh3 {[%clk 0:03:17.9]} 22. Bxh3 {[%clk
0:02:30]} 22... Qxh3 {[%clk 0:03:12.3]} 23. Nf3 {[%clk 0:02:29.3]} 23... Qf5
{[%clk 0:03:03.3]} 24. Kg2 {[%clk 0:02:20.3]} 24... e6 {[%clk 0:02:53.3]} 25.
Nh4 {[%clk 0:02:09.7]} 25... Qe4+ {[%clk 0:02:46.7]} 26. Qxe4 {[%clk 0:02:07]}
26... dxe4 {[%clk 0:02:46.6]} 27. Kg1 {[%clk 0:02:02.4]} 27... Bxd4 {[%clk
0:02:34.7]} 28. Ng2 {[%clk 0:01:59.1]} 28... Bxa1 {[%clk 0:02:30.7]} 29. Rxa1
{[%clk 0:01:56]} 29... Rfc8 {[%clk 0:02:30.3]} 30. Kh2 {[%clk 0:01:45.1]} 30...
Rxf2 {[%clk 0:02:27.4]} 31. Kh3 {[%clk 0:01:28.1]} 31... Rc3 {[%clk 0:02:19.6]}
32. a4 {[%clk 0:01:23.5]} 32... Rff3 {[%clk 0:02:16.2]} 33. Kh2 {[%clk
0:01:18.1]} 33... Rxg3 {[%clk 0:02:15.2]} 34. Nf4 {[%clk 0:01:11.2]} 34... Rgf3
{[%clk 0:02:09.7]} 35. Ne2 {[%clk 0:01:06.8]} 35... Rc2 {[%clk 0:02:08.3]} 36.
Re1 {[%clk 0:00:58.1]} 36... Rf2+ {[%clk 0:02:06.9]} 37. Kg1 {[%clk 0:00:55.1]}
37... Rfxe2 {[%clk 0:02:05.9]} 38. Rxe2 {[%clk 0:00:53.9]} 38... Rxe2 {[%clk
0:02:05.8]} 39. Kf1 {[%clk 0:00:53]} 39... Rb2 {[%clk 0:02:04.7]} 40. Ke1 {[%clk
0:00:52.1]} 40... h5 {[%clk 0:02:03.6]} 41. Kd1 {[%clk 0:00:48.8]} 41... h4
{[%clk 0:02:02.4]} 42. Kc1 {[%clk 0:00:48.5]} 42... Rf2 {[%clk 0:01:59.9]} 43.
Kd1 {[%clk 0:00:47.5]} 43... h3 {[%clk 0:01:58.2]} 44. Ke1 {[%clk 0:00:47.2]}
44... e3 {[%clk 0:01:57.8]} 45. b5 {[%clk 0:00:44.5]} 45... h2 {[%clk 0:01:57]}
46. a5 {[%clk 0:00:36.5]} 46... h1=R# {[%clk 0:01:54.6]} 0-1

[Event "Live Chess"]
[Site "Chess.com"]
[Date "2023.05.20"]
[Round "-"]
[White "LiamClery2020"]
[Black "YF22Raptor"]
[Result "1-0"]
[WhiteElo "2083"]
[BlackElo "1016"]
[TimeControl "300"]
[EndTime "10:54:02 PDT"]
[Termination "LiamClery2020 won by resignation"]

1. e4 {[%clk 0:04:59.2]} 1... c6 {[%clk 0:04:58.4]} 2. c4 {[%clk 0:04:57.7]}
2... d5 {[%clk 0:04:58]} 3. cxd5 {[%clk 0:04:57.6]} 3... cxd5 {[%clk 0:04:57.3]}
4. exd5 {[%clk 0:04:57.5]} 4... Qxd5 {[%clk 0:04:56.6]} 5. Nc3 {[%clk
0:04:57.4]} 5... Qd8 {[%clk 0:04:55.4]} 6. Nf3 {[%clk 0:04:56.6]} 6... e6 {[%clk
0:04:54.5]} 7. h3 {[%clk 0:04:55]} 7... Nc6 {[%clk 0:04:53.7]} 8. d4 {[%clk
0:04:54.3]} 8... Nf6 {[%clk 0:04:52.4]} 9. Bd3 {[%clk 0:04:53.5]} 9... Nxd4
{[%clk 0:04:48.5]} 10. Nxd4 {[%clk 0:04:53.4]} 10... Bc5 {[%clk 0:04:42.1]} 11.
Nf3 {[%clk 0:04:51]} 11... Bb4 {[%clk 0:04:38.6]} 12. O-O {[%clk 0:04:49.1]}
12... Bxc3 {[%clk 0:04:37.6]} 13. bxc3 {[%clk 0:04:49]} 13... a6 {[%clk
0:04:37.1]} 14. Bg5 {[%clk 0:04:47.6]} 14... O-O {[%clk 0:04:36.6]} 15. Qc2
{[%clk 0:04:46.7]} 15... h6 {[%clk 0:04:31.8]} 16. Rad1 {[%clk 0:04:43.2]} 16...
Qe7 {[%clk 0:04:27.1]} 17. Bxf6 {[%clk 0:04:41.9]} 17... Qxf6 {[%clk 0:04:26.1]}
18. Rfe1 {[%clk 0:04:39.5]} 1-0

[Event "Live Chess"]
[Site "Chess.com"]
[Date "2023.05.20"]
[Round "-"]
[White "MaximKhimchenko"]
[Black "MaximKris"]
[Result "0-1"]
[WhiteElo "1347"]
[BlackElo "1860"]
[TimeControl "300"]
[EndTime "10:54:06 PDT"]
[Termination "MaximKris won by resignation"]

1. e4 {[%clk 0:04:58.8]} 1... e5 {[%clk 0:04:58.8]} 2. Nf3 {[%clk 0:04:57.2]}
2... Nc6 {[%clk 0:04:58.2]} 3. d4 {[%clk 0:04:56.1]} 3... exd4 {[%clk
0:04:57.3]} 4. Bc4 {[%clk 0:04:55.7]} 4... Bc5 {[%clk 0:04:54.8]} 5. c3 {[%clk
0:04:54.9]} 5... d6 {[%clk 0:04:51.8]} 6. cxd4 {[%clk 0:04:53.6]} 6... Bb4+
{[%clk 0:04:50.6]} 7. Qd2 {[%clk 0:04:52.8]} 7... Nf6 {[%clk 0:04:50.2]} 8. Nc3
{[%clk 0:04:50.5]} 8... Nxe4 {[%clk 0:04:49]} 9. Qe3 {[%clk 0:04:49.4]} 9... d5
{[%clk 0:04:39.9]} 10. Bd3 {[%clk 0:04:44.5]} 10... f5 {[%clk 0:04:29.6]} 11.
Bd2 {[%clk 0:04:40.9]} 11... Bxc3 {[%clk 0:04:21.3]} 12. bxc3 {[%clk 0:04:39]}
12... O-O {[%clk 0:04:20]} 13. O-O {[%clk 0:04:34.2]} 13... Nxd2 {[%clk
0:04:17.1]} 14. Nxd2 {[%clk 0:04:34.1]} 14... f4 {[%clk 0:04:16]} 15. Qf3 {[%clk
0:04:31.1]} 15... Bf5 {[%clk 0:04:11.2]} 16. Rae1 {[%clk 0:04:25.5]} 16... Bxd3
{[%clk 0:04:04.4]} 17. Qxd3 {[%clk 0:04:24]} 17... Qf6 {[%clk 0:04:02.3]} 18.
Nf3 {[%clk 0:04:20.7]} 18... Rae8 {[%clk 0:03:57.9]} 19. Ne5 {[%clk 0:04:16.9]}
19... Nxe5 {[%clk 0:03:55]} 20. dxe5 {[%clk 0:04:16.8]} 20... Rxe5 {[%clk
0:03:54]} 21. Rxe5 {[%clk 0:04:14.3]} 21... Qxe5 {[%clk 0:03:53.9]} 22. Rd1
{[%clk 0:04:12.1]} 22... Re8 {[%clk 0:03:50]} 23. h3 {[%clk 0:04:03.1]} 23... c6
{[%clk 0:03:47.9]} 24. Kh2 {[%clk 0:03:59.2]} 24... f3+ {[%clk 0:03:45.4]} 25.
g3 {[%clk 0:03:56.7]} 25... Qe2 {[%clk 0:03:43.1]} 26. Qxe2 {[%clk 0:03:52.2]}
26... Rxe2 {[%clk 0:03:40.6]} 0-1

[Event "Live Chess"]
[Site "Chess.com"]
[Date "2023.05.20"]
[Round "-"]
[White "Andysav3"]
[Black "KeithArkell"]
[Result "0-1"]
[WhiteElo "1694"]
[BlackElo "2612"]
[TimeControl "300"]
[EndTime "10:54:11 PDT"]
[Termination "KeithArkell won by resignation"]

1. e4 {[%clk 0:04:57.8]} 1... c6 {[%clk 0:04:59.2]} 2. Nf3 {[%clk 0:04:55.7]}
2... d5 {[%clk 0:04:59.1]} 3. d3 {[%clk 0:04:53]} 3... Bg4 {[%clk 0:04:55.7]} 4.
h3 {[%clk 0:04:46]} 4... Bxf3 {[%clk 0:04:53.4]} 5. Qxf3 {[%clk 0:04:44.3]} 5...
e6 {[%clk 0:04:52.8]} 6. g3 {[%clk 0:04:34]} 6... Nd7 {[%clk 0:04:51.7]} 7. Bg2
{[%clk 0:04:31.5]} 7... Ngf6 {[%clk 0:04:50.9]} 8. O-O {[%clk 0:04:26.4]} 8...
Bc5 {[%clk 0:04:48.9]} 9. c3 {[%clk 0:04:05.9]} 9... O-O {[%clk 0:04:48.8]} 10.
Be3 {[%clk 0:03:59.1]} 10... dxe4 {[%clk 0:04:48.7]} 11. dxe4 {[%clk 0:03:57.2]}
11... Bxe3 {[%clk 0:04:45.9]} 12. Qxe3 {[%clk 0:03:55]} 12... Qb6 {[%clk
0:04:31.8]} 13. Qxb6 {[%clk 0:03:35.2]} 13... axb6 {[%clk 0:04:31.7]} 14. Nd2
{[%clk 0:03:20.8]} 14... Rfd8 {[%clk 0:04:28.8]} 15. Nb3 {[%clk 0:03:16.2]}
15... Nc5 {[%clk 0:04:27.6]} 16. Nxc5 {[%clk 0:03:11.7]} 16... bxc5 {[%clk
0:04:26.8]} 17. f3 {[%clk 0:02:57]} 17... Kf8 {[%clk 0:04:23.5]} 18. Rf2 {[%clk
0:02:49.4]} 18... Ke7 {[%clk 0:04:21]} 19. Re2 {[%clk 0:02:46.9]} 19... c4
{[%clk 0:04:19.8]} 20. Kf2 {[%clk 0:02:43.8]} 20... Nd7 {[%clk 0:04:18.8]} 21.
Rd2 {[%clk 0:02:28.7]} 21... Nc5 {[%clk 0:04:17.4]} 22. Rxd8 {[%clk 0:02:19.8]}
22... Rxd8 {[%clk 0:04:14.2]} 23. Ke2 {[%clk 0:02:05.1]} 23... Ra8 {[%clk
0:04:13.2]} 24. a3 {[%clk 0:01:56.7]} 24... e5 {[%clk 0:04:12.2]} 25. Rd1 {[%clk
0:01:50.8]} 25... g5 {[%clk 0:04:07.1]} 26. Ke3 {[%clk 0:01:44.2]} 26... Ra6
{[%clk 0:04:04.3]} 27. Bf1 {[%clk 0:01:38.3]} 27... b5 {[%clk 0:04:02.8]} 28. f4
{[%clk 0:01:35.3]} 28... gxf4+ {[%clk 0:04:01.4]} 29. gxf4 {[%clk 0:01:34.2]}
29... f6 {[%clk 0:03:56.9]} 30. h4 {[%clk 0:01:30]} 30... Ra8 {[%clk 0:03:55.8]}
31. Be2 {[%clk 0:01:13.9]} 31... Rg8 {[%clk 0:03:44.2]} 32. Rf1 {[%clk
0:01:03.1]} 32... Rg3+ {[%clk 0:03:25.6]} 33. Rf3 {[%clk 0:01:00.5]} 33... Rg4
{[%clk 0:03:22.7]} 34. Bf1 {[%clk 0:00:39.9]} 34... Rxh4 {[%clk 0:03:18.7]} 35.
fxe5 {[%clk 0:00:36.6]} 35... Rxe4+ {[%clk 0:03:17.3]} 36. Kd2 {[%clk
0:00:35.1]} 36... Rxe5 {[%clk 0:03:14.9]} 37. Bh3 {[%clk 0:00:30.3]} 37... Ne4+
{[%clk 0:03:10.7]} 38. Kc2 {[%clk 0:00:28.5]} 38... Ng5 {[%clk 0:03:09.9]} 39.
Rg3 {[%clk 0:00:24.8]} 39... Nxh3 {[%clk 0:03:08.8]} 40. Rxh3 {[%clk 0:00:23.8]}
40... h5 {[%clk 0:03:08.1]} 0-1